[Event "ESP-chT 2nd Division 2019"]
[Site "Linares"]
[Date "2019.08.20"]
[Round "2.14"]
[White "Lobo Rodriguez, Jesus Angel"]
[Black "Chueca Lorente, Javier"]
[Result "1-0"]
[ECO "A36"]
[WhiteElo "2103"]
[BlackElo "2144"]
[Annotator "ChessBase"]
[PlyCount "71"]
[EventDate "2019.08.19"]
[EventType "team-tourn"]
[EventCountry "ESP"]
[SourceTitle "playchess.com"]
[Source "ChessBase"]
[SourceQuality "1"]
[TimeControl "5400+30"]

1. c4 {[%emt 0:00:00]} c5 {[%emt 0:05:06]} 2. g3 {[%emt 0:00:00]} g6 {[%emt 0:00:13]} 3. Bg2 {[%emt 0:00:02]} Bg7 {[%emt 0:00:02]} 4. Nc3 {[%emt 0:01:06]} Nc6 {[%emt 0:00:21]} 5. a3 {[%emt 0:00:12]} e6 {[%emt 0:01:05]} 6. Rb1 {[%emt 0:01:48]} Nge7 {[%emt 0:04:43]} 7. b4 {[%emt 0:04:30]} cxb4 {[%emt 0:03:40]} 8. axb4 {[%emt 0:00:17]} d5 {[%emt 0:00:28]} 9. b5 {[%emt 0:07:43]} Na5 {[%emt 0:07:45]} 10. cxd5 {[%emt 0:03:39]} exd5 {[%emt 0:03:41]} 11. Ba3 {[%emt 0:00:43]} d4 {[%emt 0:02:02]} 12. Bxe7 {[%emt 0:02:23]} Qxe7 {[%emt 0:00:16]} 13. Nd5 {[%emt 0:00:04]} Qd8 {[%emt 0:01:23]} 14. b6 {[%emt 0:02:46]} O-O {[%emt 0:09:08]} 15. Nc7 {[%emt 0:18:01]} Bf5 {[%emt 0:01:17]} 16. Nxa8 {[%emt 0:07:36]} Bxb1 {[%emt 0:01:17]} 17. Qxb1 {[%emt 0:00:05]} Qxa8 {[%emt 0:00:03]} 18. bxa7 {[%emt 0:00:09]} Rc8 {[%emt 0:05:54]} 19. Nh3 {[%emt 0:04:56]} Qxa7 {[%emt 0:19:38]} 20. O-O {[%emt 0:01:10]} Qc5 {[%emt 0:00:53]} 21. Nf4 {[%emt 0:04:53]} Bh6 {[%emt 0:11:20]} 22. Nd3 {[%emt 0:18:33]} Qc2 {[%emt 0:00:33]} 23. Qa1 {[%emt 0:06:51]} Nb3 {[%emt 0:06:03]} 24. Qa7 {[%emt 0:00:13]} Nxd2 {[%emt 0:01:40]} 25. Re1 {[%emt 0:02:34]} Re8 {[%emt 0:04:19]} 26. Qxd4 {[%emt 0:03:50]} Nb3 {[%emt 0:00:54]} 27. Qa4 {[%emt 0:01:05]} Re7 {[%emt 0:02:28]} 28. Bd5 {[%emt 0:01:21]} Bd2 {[%emt 0:06:13]} 29. Bxb3 {[%emt 0:00:28]} Qc3 {[%emt 0:00:17]} 30. Rd1 {[%emt 0:03:01]} h5 {[%emt 0:00:47]} 31. Qc4 {[%emt 0:01:14]} Qa5 {[%emt 0:00:25]} 32. Nf4 {[%emt 0:00:34]} b5 {[%emt 0:01:13]} 33. Qc5 {[%emt 0:01:43]} Bb4 {[%emt 0:00:41]} 34. Qc6 {[%emt 0:00:23]} Qa3 {[%emt 0:00:38]} 35. Qxg6+ {[%emt 0:00:12]} Kh8 {[%emt 0:00:29]} 36. Rd8+ {[%emt 0:00:10]} 1-0

[Event "ESP-chT 2nd Division 2019"]
[Site "Linares"]
[Date "2019.08.20"]
[Round "2.15"]
[White "Roque Sola, Gisela"]
[Black "Fidalgo Fernandez, Lucia"]
[Result "1/2-1/2"]
[ECO "A15"]
[WhiteElo "2048"]
[BlackElo "2051"]
[Annotator "NA"]
[PlyCount "124"]
[EventDate "2019.08.19"]
[EventType "team-tourn"]
[EventCountry "ESP"]
[SourceTitle "playchess.com"]
[Source "ChessBase"]
[SourceQuality "1"]
[TimeControl "5400+30"]

1. c4 {[%emt 0:00:00]} Nf6 {[%emt 0:00:00]} 2. Nf3 {[%emt 0:00:01]} e6 {[%emt 0:01:08]} 3. g3 {[%emt 0:00:57]} c5 {[%emt 0:00:06]} 4. Bg2 {[%emt 0:02:51]} Be7 {[%emt 0:02:22]} 5. O-O {[%emt 0:01:30]} O-O {[%emt 0:00:39]} 6. Nc3 {[%emt 0:03:42]} d6 {[%emt 0:04:08]} 7. a3 {[%emt 0:02:31]} a6 {[%emt 0:10:09]} 8. Rb1 {[%emt 0:01:36]} Qc7 {[%emt 0:00:30]} 9. d3 {[%emt 0:03:12]} Nbd7 {[%emt 0:03:18]} 10. b4 {[%emt 0:03:43]} Rb8 {[%emt 0:23:16]} 11. Bd2 {[%emt 0:05:44]} b6 {[%emt 0:03:24]} 12. Qc2 {[%emt 0:11:03]} Bb7 {[%emt 0:03:42]} 13. Rfc1 {[%emt 0:01:18]} Rfc8 {[%emt 0:03:09]} 14. Rb2 {[%emt 0:12:31]} Bf8 {[%emt 0:04:16]} 15. Rcb1 {[%emt 0:03:49]} cxb4 {[%emt 0:00:19]} 16. axb4 {[%emt 0:01:01]} d5 {[%emt 0:00:09]} 17. cxd5 {[%emt 0:13:00]} Nxd5 {[%emt 0:00:18]} 18. Rb3 {[%emt 0:00:08]} b5 {[%emt 0:17:33]} 19. Qb2 {[%emt 0:05:00]} N7b6 {[%emt 0:02:43]} 20. Ne4 {[%emt 0:01:01]} Na4 {[%emt 0:01:07]} 21. Qa1 {[%emt 0:05:07]} h6 {[%emt 0:05:43]} 22. Qe5 {[%emt 0:09:15]} Qb6 {[%emt 0:08:24]} 23. Nd4 {[%emt 0:01:30]} f5 {[%emt 0:00:50]} 24. Nc3 {[%emt 0:05:45]} Naxc3 {[%emt 0:00:26]} 25. Bxc3 {[%emt 0:00:05]} Nxc3 {[%emt 0:00:44]} 26. Rxc3 {[%emt 0:00:04]} Bxg2 {[%emt 0:01:20]} 27. Rxc8 {[%emt 0:00:20]} Rxc8 {[%emt 0:00:19]} 28. Kxg2 {[%emt 0:00:05]} Qb7+ {[%emt 0:00:09]} 29. Kg1 {[%emt 0:00:07]} Bxb4 {[%emt 0:02:10]} 30. Qxe6+ {[%emt 0:00:40]} Kh8 {[%emt 0:00:07]} 31. Nxf5 {[%emt 0:00:15]} Bf8 {[%emt 0:00:39]} 32. Nh4 {[%emt 0:03:06]} Bc5 {[%emt 0:01:37]} 33. e3 {[%emt 0:01:12]} b4 {[%emt 0:00:27]} 34. d4 {[%emt 0:00:10]} Ba7 {[%emt 0:00:39]} 35. d5 {[%emt 0:00:23]} Rd8 {[%emt 0:00:30]} 36. e4 {[%emt 0:00:55]} a5 {[%emt 0:00:11]} 37. Nf5 {[%emt 0:00:40]} Qb6 {[%emt 0:00:21]} 38. Qxb6 {[%emt 0:01:37]} Bxb6 {[%emt 0:00:01]} 39. Kf1 {[%emt 0:00:23]} Bc5 {[%emt 0:00:37]} 40. Ke2 {[%emt 0:02:13]} a4 {[%emt 0:00:16]} 41. Ne3 {[%emt 0:01:07]} a3 {[%emt 0:00:40]} 42. Nc2 {[%emt 0:00:38]} a2 {[%emt 0:00:44]} 43. Rb2 {[%emt 0:00:04]} Ra8 {[%emt 0:00:12]} 44. Kd3 {[%emt 0:00:10]} a1=Q {[%emt 0:00:25]} 45. Nxa1 {[%emt 0:00:06]} Rxa1 {[%emt 0:00:04]} 46. f4 {[%emt 0:00:14]} Kg8 47. e5 {[%emt 0:00:19]} Rc1 {[%emt 0:00:38]} 48. d6 {[%emt 0:00:30]} Kf7 {[%emt 0:00:27]} 49. Ke4 {[%emt 0:00:10]} Ke6 {[%emt 0:00:56]} 50. f5+ {[%emt 0:00:05]} Kd7 {[%emt 0:00:08]} 51. Kd5 {[%emt 0:00:06]} Bxd6 {[%emt 0:01:30]} 52. exd6 {[%emt 0:00:17]} Rd1+ {[%emt 0:00:17]} 53. Ke5 {[%emt 0:00:05]} Re1+ {[%emt 0:00:29]} 54. Kf4 {[%emt 0:00:17]} Kxd6 {[%emt 0:01:45]} 55. Rxb4 {[%emt 0:00:05]} Rf1+ {[%emt 0:00:33]} 56. Kg4 {[%emt 0:00:08]} Ke7 {[%emt 0:00:30]} 57. Rf4 {[%emt 0:00:38]} Rh1 {[%emt 0:00:22]} 58. h4 {[%emt 0:00:30]} Kf6 {[%emt 0:00:10]} 59. Rf2 {[%emt 0:02:00]} Rg1 {[%emt 0:00:14]} 60. Ra2 {[%emt 0:01:01]} h5+ {[%emt 0:00:36]} 61. Kf4 {[%emt 0:00:21]} Rf1+ {[%emt 0:00:10]} 62. Ke4 {[%emt 0:00:18]} Re1+ {[%emt 0:00:07]} 1/2-1/2

[Event "ESP-chT 2nd Division 2019"]
[Site "Linares"]
[Date "2019.08.20"]
[Round "2.16"]
[White "Sanchez Saez, Francisco"]
[Black "Suarez Gomez, Julio"]
[Result "0-1"]
[ECO "B40"]
[WhiteElo "2359"]
[BlackElo "2433"]
[Annotator "ChessBase"]
[PlyCount "68"]
[EventDate "2019.08.19"]
[EventType "team-tourn"]
[EventCountry "ESP"]
[SourceTitle "playchess.com"]
[Source "ChessBase"]
[SourceQuality "1"]
[TimeControl "5400+30"]

1. e4 {[%emt 0:00:00]} c5 {[%emt 0:04:13]} 2. Nf3 {[%emt 0:00:00]} e6 {[%emt 0:00:06]} 3. d4 {[%emt 0:00:03]} cxd4 {[%emt 0:00:07]} 4. c3 {[%emt 0:01:16]} dxc3 {[%emt 0:01:25]} 5. Nxc3 {[%emt 0:00:07]} Nc6 {[%emt 0:00:12]} 6. Bc4 {[%emt 0:01:16]} a6 {[%emt 0:00:07]} 7. O-O {[%emt 0:01:14]} Nge7 {[%emt 0:00:07]} 8. Bg5 {[%emt 0:00:12]} h6 {[%emt 0:00:09]} 9. Be3 {[%emt 0:01:21]} b5 {[%emt 0:03:20]} 10. Bb3 {[%emt 0:05:31]} Bb7 {[%emt 0:00:15]} 11. Re1 {[%emt 0:44:23]} Na5 {[%emt 0:02:29]} 12. Nd5 {[%emt 0:14:44]} Nxd5 {[%emt 0:22:08]} 13. Bxd5 {[%emt 0:01:40]} Be7 {[%emt 0:10:27]} 14. Bxb7 {[%emt 0:02:01]} Nxb7 {[%emt 0:00:13]} 15. Ne5 {[%emt 0:00:35]} Bf6 {[%emt 0:07:47]} 16. Nd3 {[%emt 0:05:53]} d6 {[%emt 0:10:45]} 17. Qf3 {[%emt 0:01:15]} O-O {[%emt 0:03:48]} 18. Rad1 {[%emt 0:04:41]} Qe7 {[%emt 0:04:59]} 19. Qg4 {[%emt 0:00:32]} Kh7 {[%emt 0:00:48]} 20. f4 {[%emt 0:00:08]} Rfc8 {[%emt 0:08:53]} 21. e5 {[%emt 0:05:01]} dxe5 {[%emt 0:00:18]} 22. fxe5 {[%emt 0:00:05]} Bg5 {[%emt 0:00:31]} 23. Bxg5 {[%emt 0:00:18]} hxg5 {[%emt 0:00:12]} 24. Nf2 {[%emt 0:02:39]} Rd8 {[%emt 0:08:05]} 25. Ne4 {[%emt 0:00:59]} Kg8 {[%emt 0:01:25]} 26. Nxg5 {[%emt 0:05:02]} Qc5+ {[%emt 0:03:05]} 27. Kh1 {[%emt 0:00:21]} Rxd1 {[%emt 0:02:04]} 28. Rxd1 {[%emt 0:02:02]} Rd8 {[%emt 0:00:47]} 29. Rf1 {[%emt 0:00:22]} Qxe5 {[%emt 0:01:11]} 30. Qh5 {[%emt 0:00:44]} Nd6 {[%emt 0:00:18]} 31. h4 {[%emt 0:00:30]} Rd7 {[%emt 0:01:06]} 32. Qh7+ {[%emt 0:00:22]} Kf8 {[%emt 0:00:15]} 33. Qg6 {[%emt 0:00:36]} Nf5 {[%emt 0:01:10]} 34. Qh7 {[%emt 0:00:24]} Ng3+ {[%emt 0:00:27]} 0-1

[Event "ESP-chT 2nd Division 2019"]
[Site "Linares"]
[Date "2019.08.20"]
[Round "2.17"]
[White "Reinaldo Castineira, Roi"]
[Black "Galiana Fernandez, Adrian"]
[Result "1/2-1/2"]
[ECO "C54"]
[WhiteElo "2467"]
[BlackElo "2295"]
[Annotator "ChessBase"]
[PlyCount "70"]
[EventDate "2019.08.19"]
[EventType "team-tourn"]
[EventCountry "ESP"]
[SourceTitle "playchess.com"]
[Source "ChessBase"]
[SourceQuality "1"]
[TimeControl "5400+30"]

1. e4 {[%emt 0:03:51]} e5 {[%emt 0:00:00]} 2. Nf3 {[%emt 0:00:26]} Nc6 {[%emt 0:00:00]} 3. Bc4 {[%emt 0:00:45]} Bc5 {[%emt 0:00:00]} 4. c3 {[%emt 0:01:13]} Nf6 {[%emt 0:00:02]} 5. d4 {[%emt 0:02:38]} exd4 {[%emt 0:00:08]} 6. e5 {[%emt 0:00:06]} d5 {[%emt 0:00:10]} 7. Bb5 {[%emt 0:00:06]} Ne4 {[%emt 0:00:19]} 8. cxd4 {[%emt 0:00:06]} Bb6 {[%emt 0:01:08]} 9. Nc3 {[%emt 0:00:09]} O-O {[%emt 0:01:36]} 10. Be3 {[%emt 0:00:05]} Bg4 {[%emt 0:07:20]} 11. h3 {[%emt 0:01:36]} Bxf3 {[%emt 0:06:53]} 12. gxf3 {[%emt 0:00:42]} Nxc3 {[%emt 0:02:16]} 13. bxc3 {[%emt 0:00:13]} Qh4 {[%emt 0:08:10]} 14. f4 {[%emt 0:08:53]} f5 {[%emt 0:01:45]} 15. Qf3 {[%emt 0:07:04]} Rad8 {[%emt 0:03:20]} 16. Rg1 {[%emt 0:06:00]} Ba5 {[%emt 0:03:56]} 17. Bd2 {[%emt 0:05:44]} Ne7 {[%emt 0:03:00]} 18. Rg5 {[%emt 0:03:30]} Ng6 {[%emt 0:06:04]} 19. Ke2 {[%emt 0:13:25]} c5 {[%emt 0:03:48]} 20. dxc5 {[%emt 0:00:16]} d4 {[%emt 0:00:58]} 21. Bc4+ {[%emt 0:07:28]} Kh8 {[%emt 0:01:22]} 22. Rh5 {[%emt 0:00:06]} dxc3 {[%emt 0:00:32]} 23. Rxh4 {[%emt 0:09:53]} Nxh4 {[%emt 0:00:54]} 24. Qxb7 {[%emt 0:01:27]} Rxd2+ {[%emt 0:00:30]} 25. Ke3 {[%emt 0:00:06]} g5 {[%emt 0:12:53]} 26. Rg1 {[%emt 0:08:58]} c2 {[%emt 0:01:14]} 27. Qb2 {[%emt 0:00:07]} gxf4+ {[%emt 0:10:54]} 28. Kxf4 {[%emt 0:00:06]} Rxf2+ {[%emt 0:00:09]} 29. Ke3 {[%emt 0:09:04]} Rf3+ {[%emt 0:12:42]} 30. Ke2 {[%emt 0:00:52]} f4 {[%emt 0:00:24]} 31. e6+ {[%emt 0:05:22]} Bc3 {[%emt 0:00:51]} 32. Qxc2 {[%emt 0:01:04]} Rd8 {[%emt 0:03:39]} 33. e7 {[%emt 0:03:50]} Re3+ {[%emt 0:00:17]} 34. Kf2 {[%emt 0:00:21]} Rf3+ {[%emt 0:00:50]} 35. Ke2 {[%emt 0:00:04]} Re3+ {[%emt 0:00:06]} 1/2-1/2

[Event "ESP-chT 2nd Division 2019"]
[Site "Linares"]
[Date "2019.08.20"]
[Round "2.18"]
[White "Sanchez Dengra, Jose Maria"]
[Black "Abal Cores, Lucas"]
[Result "0-1"]
[ECO "B32"]
[WhiteElo "2216"]
[BlackElo "2290"]
[Annotator "ChessBase"]
[PlyCount "72"]
[EventDate "2019.08.19"]
[EventType "team-tourn"]
[EventCountry "ESP"]
[SourceTitle "playchess.com"]
[Source "ChessBase"]
[SourceQuality "1"]
[TimeControl "5400+30"]

1. e4 {[%emt 0:00:00]} c5 {[%emt 0:02:56]} 2. Nf3 {[%emt 0:00:00]} Nc6 {[%emt 0:00:29]} 3. d4 {[%emt 0:00:00]} cxd4 {[%emt 0:00:21]} 4. Nxd4 {[%emt 0:00:08]} e5 {[%emt 0:00:26]} 5. Nb5 {[%emt 0:00:16]} d6 {[%emt 0:00:05]} 6. N1c3 {[%emt 0:00:35]} a6 {[%emt 0:00:06]} 7. Na3 {[%emt 0:00:17]} b5 {[%emt 0:00:04]} 8. Nd5 {[%emt 0:00:31]} Nce7 {[%emt 0:00:05]} 9. c4 {[%emt 0:03:26]} Nxd5 {[%emt 0:00:07]} 10. exd5 {[%emt 0:01:31]} bxc4 {[%emt 0:00:05]} 11. Nxc4 {[%emt 0:01:56]} Nf6 {[%emt 0:00:36]} 12. Be3 {[%emt 0:05:00]} Rb8 {[%emt 0:00:05]} 13. a4 {[%emt 0:11:57]} Be7 {[%emt 0:00:09]} 14. Be2 {[%emt 0:01:44]} O-O {[%emt 0:00:55]} 15. O-O {[%emt 0:02:27]} Qd7 {[%emt 0:00:04]} 16. Rc1 {[%emt 0:09:55]} Qf5 {[%emt 0:06:16]} 17. Bb6 {[%emt 0:11:22]} Ne8 {[%emt 0:14:27]} 18. a5 {[%emt 0:02:14]} Qg6 {[%emt 0:05:58]} 19. Kh1 {[%emt 0:08:49]} f5 {[%emt 0:04:41]} 20. Ba7 {[%emt 0:05:15]} Rb4 {[%emt 0:10:53]} 21. Qe1 {[%emt 0:11:35]} Rb3 {[%emt 0:16:30]} 22. Qd1 {[%emt 0:07:48]} Rb4 {[%emt 0:01:14]} 23. Qe1 {[%emt 0:02:31]} Rb3 {[%emt 0:04:59]} 24. Nd2 {[%emt 0:02:13]} Rb7 {[%emt 0:03:20]} 25. Rxc8 {[%emt 0:00:46]} Rxa7 {[%emt 0:00:01]} 26. Qc1 {[%emt 0:00:23]} Bg5 {[%emt 0:04:07]} 27. Rd1 {[%emt 0:00:58]} e4 {[%emt 0:00:54]} 28. Qc6 {[%emt 0:01:19]} Bxd2 {[%emt 0:04:47]} 29. Rxd2 {[%emt 0:00:01]} f4 {[%emt 0:00:51]} 30. Rc2 {[%emt 0:04:26]} f3 {[%emt 0:00:54]} 31. gxf3 {[%emt 0:00:58]} exf3 {[%emt 0:00:06]} 32. Bxf3 {[%emt 0:00:07]} Re7 {[%emt 0:00:01]} 33. Qc3 {[%emt 0:01:19]} Rxf3 {[%emt 0:00:13]} 34. Qb4 {[%emt 0:02:01]} Rf4 {[%emt 0:01:49]} 35. R8c4 {[%emt 0:01:35]} Rxc4 {[%emt 0:02:18]} 36. Rxc4 {[%emt 0:00:06]} Qd3 {[%emt 0:00:15]} 0-1

[Event "ESP-chT 2nd Division 2019"]
[Site "Linares"]
[Date "2019.08.20"]
[Round "2.19"]
[White "Torrado Quintela, Julio"]
[Black "Aledo Yanguas, Javier"]
[Result "1-0"]
[ECO "B13"]
[WhiteElo "2169"]
[BlackElo "2023"]
[Annotator "ChessBase"]
[PlyCount "61"]
[EventDate "2019.08.19"]
[EventType "team-tourn"]
[EventCountry "ESP"]
[SourceTitle "playchess.com"]
[Source "ChessBase"]
[SourceQuality "1"]
[TimeControl "5400+30"]

1. e4 c6 {[%emt 0:00:00]} 2. d4 {[%emt 0:03:25]} d5 {[%emt 0:00:00]} 3. exd5 {[%emt 0:00:04]} cxd5 {[%emt 0:00:00]} 4. Bd3 {[%emt 0:00:13]} Nf6 {[%emt 0:01:02]} 5. c3 {[%emt 0:02:31]} Nc6 {[%emt 0:01:35]} 6. Bf4 {[%emt 0:00:14]} a6 {[%emt 0:03:19]} 7. Nd2 {[%emt 0:00:33]} b5 {[%emt 0:04:20]} 8. b4 {[%emt 0:01:58]} g6 {[%emt 0:08:24]} 9. a4 {[%emt 0:06:24]} bxa4 {[%emt 0:16:02]} 10. Rxa4 {[%emt 0:07:05]} Bg7 {[%emt 0:02:47]} 11. Ngf3 {[%emt 0:00:22]} Nh5 {[%emt 0:02:43]} 12. Be3 {[%emt 0:01:59]} O-O {[%emt 0:02:04]} 13. O-O {[%emt 0:02:16]} Qd6 {[%emt 0:15:56]} 14. b5 {[%emt 0:06:59]} Nb8 {[%emt 0:07:55]} 15. Qa1 {[%emt 0:00:33]} Rd8 {[%emt 0:03:25]} 16. Nb3 {[%emt 0:08:10]} f6 {[%emt 0:12:35]} 17. c4 {[%emt 0:04:44]} axb5 {[%emt 0:06:31]} 18. Rxa8 {[%emt 0:00:29]} bxc4 {[%emt 0:00:43]} 19. Qa5 {[%emt 0:14:00]} Bb7 {[%emt 0:07:34]} 20. Ra7 {[%emt 0:05:46]} Nc6 {[%emt 0:02:02]} 21. Qb6 {[%emt 0:00:09]} Nxa7 {[%emt 0:00:37]} 22. Qxb7 {[%emt 0:04:44]} Nc6 {[%emt 0:00:31]} 23. Nc5 {[%emt 0:00:11]} cxd3 {[%emt 0:00:30]} 24. Nxd3 {[%emt 0:00:13]} Rb8 {[%emt 0:00:43]} 25. Qa6 {[%emt 0:00:44]} Nxd4 {[%emt 0:00:31]} 26. Qa7 {[%emt 0:01:26]} Nxf3+ {[%emt 0:00:09]} 27. gxf3 {[%emt 0:00:04]} Rd8 {[%emt 0:00:47]} 28. Rc1 {[%emt 0:05:58]} Rd7 {[%emt 0:00:33]} 29. Qa8+ {[%emt 0:00:14]} Kf7 {[%emt 0:00:14]} 30. Rc6 {[%emt 0:12:29]} Ra7 {[%emt 0:00:53]} 31. Bxa7 {[%emt 0:00:18]} 1-0

[Event "ESP-chT 2nd Division 2019"]
[Site "Linares"]
[Date "2019.08.20"]
[Round "2.20"]
[White "Sanchez Dengra, Barbara"]
[Black "Dorado Meijide, Andrea"]
[Result "0-1"]
[ECO "C03"]
[WhiteElo "1983"]
[BlackElo "1762"]
[Annotator "NA"]
[PlyCount "90"]
[EventDate "2019.08.19"]
[EventType "team-tourn"]
[EventCountry "ESP"]
[SourceTitle "playchess.com"]
[Source "ChessBase"]
[SourceQuality "1"]
[TimeControl "5400+30"]

1. e4 {[%emt 0:00:00]} e6 {[%emt 0:02:36]} 2. d4 {[%emt 0:00:00]} d5 {[%emt 0:00:11]} 3. Nd2 {[%emt 0:00:18]} h6 {[%emt 0:00:17]} 4. Ngf3 {[%emt 0:03:28]} Nf6 {[%emt 0:00:06]} 5. e5 {[%emt 0:02:36]} Nfd7 {[%emt 0:00:31]} 6. Bd3 {[%emt 0:02:26]} c5 {[%emt 0:00:12]} 7. c3 {[%emt 0:01:35]} Nc6 {[%emt 0:01:42]} 8. O-O {[%emt 0:02:36]} g5 {[%emt 0:00:30]} 9. dxc5 {[%emt 0:12:25]} Bxc5 {[%emt 0:01:54]} 10. Nb3 {[%emt 0:06:23]} Bf8 {[%emt 0:05:01]} 11. Bb5 {[%emt 0:04:46]} Bg7 {[%emt 0:06:48]} 12. Re1 {[%emt 0:03:46]} a6 {[%emt 0:20:23]} 13. Bxc6 {[%emt 0:06:43]} bxc6 {[%emt 0:00:11]} 14. Nbd4 {[%emt 0:03:06]} c5 {[%emt 0:01:23]} 15. Nf5 {[%emt 0:23:34]} exf5 {[%emt 0:18:36]} 16. Qxd5 {[%emt 0:01:21]} Nb6 {[%emt 0:02:08]} 17. Qxc5 {[%emt 0:02:52]} Be6 {[%emt 0:00:16]} 18. Nd4 {[%emt 0:10:59]} Nd7 {[%emt 0:07:23]} 19. Qc6 {[%emt 0:04:15]} O-O {[%emt 0:01:38]} 20. Nxe6 {[%emt 0:01:02]} fxe6 {[%emt 0:00:02]} 21. Qxe6+ {[%emt 0:00:07]} Kh8 {[%emt 0:00:33]} 22. Be3 {[%emt 0:01:03]} Nxe5 {[%emt 0:03:53]} 23. Bd4 {[%emt 0:01:02]} Ng4 {[%emt 0:04:02]} 24. Bxg7+ {[%emt 0:01:23]} Kxg7 {[%emt 0:00:19]} 25. Rad1 {[%emt 0:00:13]} Qf6 {[%emt 0:00:41]} 26. Rd7+ {[%emt 0:01:04]} Rf7 {[%emt 0:02:23]} 27. Qd5 {[%emt 0:00:17]} Ra7 {[%emt 0:03:11]} 28. Rxa7 {[%emt 0:00:42]} Rxa7 {[%emt 0:00:29]} 29. h3 {[%emt 0:00:13]} Re7 {[%emt 0:08:15]} 30. Rxe7+ {[%emt 0:01:09]} Qxe7 {[%emt 0:00:06]} 31. hxg4 {[%emt 0:00:29]} Qe1+ {[%emt 0:00:23]} 32. Kh2 {[%emt 0:00:17]} Qxf2 {[%emt 0:00:52]} 33. Qd4+ {[%emt 0:02:14]} Qxd4 {[%emt 0:00:06]} 34. cxd4 {[%emt 0:00:04]} fxg4 {[%emt 0:01:59]} 35. b4 {[%emt 0:00:39]} Kf6 {[%emt 0:00:16]} 36. a4 {[%emt 0:00:12]} Ke6 {[%emt 0:00:10]} 37. b5 {[%emt 0:00:51]} axb5 {[%emt 0:00:21]} 38. axb5 {[%emt 0:00:47]} Kd6 {[%emt 0:00:30]} 39. Kg3 {[%emt 0:00:41]} h5 {[%emt 0:00:13]} 40. Kf2 {[%emt 0:00:44]} h4 {[%emt 0:00:19]} 41. Ke3 {[%emt 0:00:50]} h3 {[%emt 0:00:15]} 42. gxh3 {[%emt 0:00:16]} gxh3 {[%emt 0:00:06]} 43. Kf3 {[%emt 0:00:11]} g4+ {[%emt 0:00:18]} 44. Kg3 {[%emt 0:00:09]} Kd5 {[%emt 0:00:35]} 45. Kh2 {[%emt 0:00:10]} Kd6 {[%emt 0:00:05]} 0-1

[Event "ESP-chT 2nd Division 2019"]
[Site "Linares"]
[Date "2019.08.20"]
[Round "2.21"]
[White "Sos Andreu, Eric"]
[Black "Gago Padreny, Ignacio"]
[Result "1-0"]
[ECO "E04"]
[WhiteElo "2354"]
[BlackElo "2258"]
[Annotator "ChessBase"]
[PlyCount "69"]
[EventDate "2019.08.19"]
[EventType "team-tourn"]
[EventCountry "ESP"]
[SourceTitle "playchess.com"]
[Source "ChessBase"]
[SourceQuality "1"]
[TimeControl "5400+30"]

1. d4 {[%emt 0:00:00]} Nf6 {[%emt 0:00:00]} 2. c4 {[%emt 0:00:00]} e6 {[%emt 0:00:00]} 3. g3 {[%emt 0:00:00]} d5 {[%emt 0:00:00]} 4. Bg2 {[%emt 0:00:00]} dxc4 {[%emt 0:00:00]} 5. Nf3 {[%emt 0:00:17]} Nc6 {[%emt 0:00:01]} 6. O-O {[%emt 0:00:06]} Rb8 {[%emt 0:00:04]} 7. e3 {[%emt 0:00:14]} b5 {[%emt 0:00:15]} 8. b3 {[%emt 0:00:48]} cxb3 {[%emt 0:00:03]} 9. axb3 {[%emt 0:00:04]} a6 {[%emt 0:00:10]} 10. Bb2 {[%emt 0:00:13]} Be7 {[%emt 0:02:49]} 11. Qe2 {[%emt 0:00:15]} O-O {[%emt 0:01:40]} 12. Rd1 {[%emt 0:00:45]} Bb7 {[%emt 0:09:38]} 13. Nbd2 {[%emt 0:06:38]} Nb4 {[%emt 0:03:02]} 14. Nb1 {[%emt 0:13:07]} Be4 {[%emt 0:14:48]} 15. Rd2 {[%emt 0:04:03]} Bd5 {[%emt 0:06:24]} 16. Qd1 {[%emt 0:01:29]} Ne4 {[%emt 0:00:11]} 17. Re2 {[%emt 0:00:05]} Qc8 {[%emt 0:12:41]} 18. Nc3 {[%emt 0:11:30]} Nxc3 {[%emt 0:00:20]} 19. Bxc3 {[%emt 0:00:03]} Qb7 {[%emt 0:00:42]} 20. Ne1 {[%emt 0:02:11]} Bxg2 {[%emt 0:02:42]} 21. Nxg2 {[%emt 0:01:26]} Nd5 {[%emt 0:07:47]} 22. Bb2 {[%emt 0:01:59]} Rfd8 {[%emt 0:11:41]} 23. Rd2 {[%emt 0:03:22]} a5 {[%emt 0:07:06]} 24. e4 {[%emt 0:04:52]} Nb6 {[%emt 0:00:21]} 25. Qg4 {[%emt 0:03:23]} g6 {[%emt 0:04:13]} 26. Re2 {[%emt 0:04:05]} h5 {[%emt 0:09:37]} 27. Qf4 {[%emt 0:02:13]} Bd6 {[%emt 0:01:34]} 28. Qg5 {[%emt 0:00:05]} c6 {[%emt 0:05:02]} 29. Rxa5 {[%emt 0:02:41]} Be7 {[%emt 0:00:10]} 30. Qe3 {[%emt 0:00:43]} Ra8 {[%emt 0:00:07]} 31. Rxa8 {[%emt 0:00:13]} Rxa8 {[%emt 0:00:23]} 32. d5 cxd5 {[%emt 0:01:05]} 33. Qh6 {[%emt 0:05:27]} f6 34. Qxg6+ {[%emt 0:00:07]} Kf8 {[%emt 0:00:56]} 35. Nf4 {[%emt 0:00:16]} 1-0

[Event "ESP-chT 2nd Division 2019"]
[Site "Linares"]
[Date "2019.08.20"]
[Round "2.22"]
[White "Alcazar Jimenez, Jesus"]
[Black "Torres Sanchez, Jose"]
[Result "1/2-1/2"]
[ECO "B31"]
[WhiteElo "2160"]
[BlackElo "2304"]
[Annotator "ChessBase"]
[PlyCount "71"]
[EventDate "2019.08.19"]
[EventType "team-tourn"]
[EventCountry "ESP"]
[SourceTitle "playchess.com"]
[Source "ChessBase"]
[SourceQuality "1"]
[TimeControl "5400+30"]

1. e4 {[%emt 0:00:00]} c5 {[%emt 0:00:00]} 2. Nf3 {[%emt 0:00:00]} Nc6 {[%emt 0:00:07]} 3. Bb5 {[%emt 0:00:20]} g6 {[%emt 0:00:54]} 4. Bxc6 {[%emt 0:00:44]} bxc6 {[%emt 0:00:19]} 5. O-O {[%emt 0:00:19]} Bg7 {[%emt 0:00:18]} 6. Re1 {[%emt 0:01:05]} e5 {[%emt 0:03:25]} 7. c3 {[%emt 0:01:01]} Ne7 {[%emt 0:08:19]} 8. d4 {[%emt 0:00:32]} cxd4 {[%emt 0:00:20]} 9. cxd4 {[%emt 0:00:07]} exd4 {[%emt 0:00:13]} 10. Nxd4 {[%emt 0:00:07]} O-O {[%emt 0:01:46]} 11. Nc3 {[%emt 0:01:36]} Rb8 {[%emt 0:06:37]} 12. Nb3 {[%emt 0:07:01]} d5 {[%emt 0:03:11]} 13. Bf4 {[%emt 0:12:51]} Rb4 {[%emt 0:01:27]} 14. Qd2 {[%emt 0:21:21]} Rc4 {[%emt 0:13:16]} 15. Bh6 {[%emt 0:09:02]} Bxh6 {[%emt 0:11:46]} 16. Qxh6 {[%emt 0:00:08]} d4 {[%emt 0:01:17]} 17. Rad1 {[%emt 0:07:07]} Qb6 {[%emt 0:00:47]} 18. Nd2 {[%emt 0:10:12]} Rb4 {[%emt 0:02:28]} 19. Nf3 {[%emt 0:01:23]} f6 {[%emt 0:00:11]} 20. a3 {[%emt 0:02:42]} Rc4 {[%emt 0:09:51]} 21. Nd2 {[%emt 0:01:14]} Be6 {[%emt 0:05:37]} 22. Nd5 {[%emt 0:07:20]} cxd5 {[%emt 0:03:49]} 23. exd5 {[%emt 0:00:16]} Rc7 {[%emt 0:00:44]} 24. dxe6 {[%emt 0:07:41]} Qxb2 {[%emt 0:03:12]} 25. Qf4 {[%emt 0:01:11]} Rc6 {[%emt 0:16:52]} 26. Nf3 {[%emt 0:02:56]} Qxa3 {[%emt 0:03:20]} 27. Qxd4 {[%emt 0:01:14]} a5 {[%emt 0:01:21]} 28. h4 {[%emt 0:00:13]} Qc5 {[%emt 0:00:46]} 29. Qe4 {[%emt 0:02:13]} Re8 {[%emt 0:01:24]} 30. Rd7 {[%emt 0:00:42]} Nf5 {[%emt 0:00:49]} 31. e7 {[%emt 0:01:52]} Qc4 {[%emt 0:00:17]} 32. Qxc4+ {[%emt 0:00:57]} Rxc4 {[%emt 0:00:02]} 33. Ra7 {[%emt 0:00:31]} a4 {[%emt 0:00:27]} 34. h5 {[%emt 0:00:28]} Kf7 {[%emt 0:01:06]} 35. hxg6+ {[%emt 0:00:26]} hxg6 {[%emt 0:00:03]} 36. Ra1 {[%emt 0:00:28]} 1/2-1/2